bitfinex-derivatives/quotes_BTCF0:USTF0_20210111
["timestamp","ask_amount","ask_price","bid_price","bid_amount"]
[1610324238448,0.13632608,37632.0,37613.0,4.3072]
[1610324239052,0.13632608,37614.0,37613.0,4.3072]
[1610324240052,0.08705,37641.0,37613.0,4.3072]
[1610324240257,0.08705,37641.0,37613.0,4.39864]
[1610324240458,0.11209,37662.0,37613.0,4.39864]
[1610324240657,0.2945,37668.0,37613.0,4.39864]
[1610324240857,0.2945,37668.0,37614.0,0.00020381]
[1610324241056,0.2945,37668.0,37647.0,0.13632608]
[1610324241258,0.2945,37668.0,37647.0,0.21821608]
[1610324243160,0.2945,37668.0,37651.0,0.13632608]
[1610324245167,0.2945,37668.0,37656.0,0.13632608]
[1610324245366,0.2945,37668.0,37656.0,0.22067608]
[1610324245964,0.2962,37702.0,37656.0,0.22067608]
[1610324246164,0.2754,37701.0,37656.0,0.22067608]
[1610324246365,3.2961,37686.0,37656.0,0.22067608]
[1610324246574,0.2754,37701.0,37657.0,0.00020373]
[1610324247167,0.13632608,37675.0,37674.0,0.13632608]
[1610324248366,0.39254,37701.0,37674.0,0.13632608]
[1610324248566,0.39254,37701.0,37674.0,0.24808608]
[1610324248967,0.39254,37701.0,37674.0,0.11176]
[1610324249169,0.13632608,37675.0,37674.0,0.11176]
[1610324249568,0.13632608,37675.0,37674.0,0.11196372]
[1610324250068,0.13632608,37675.0,37674.0,0.11176]
[1610324253571,0.13632608,37675.0,37656.0,0.08435]
[1610324253770,0.13632608,37675.0,37651.0,3.041]
[1610324254171,0.13632608,37675.0,37657.0,0.0002038]
[1610324254371,0.13632608,37675.0,37652.0,0.00020382]
[1610324254571,0.13632608,37675.0,37658.0,0.00020385]
[1610324254971,0.13632608,37675.0,37653.0,0.00020385]
[1610324255172,0.13632608,37654.0,37652.0,0.00020385]
[1610324255372,0.13632608,37654.0,37653.0,0.00020385]
[1610324255973,0.13632608,37654.0,37652.0,0.00020385]
[1610324256173,0.13632608,37654.0,37653.0,0.00020387]
[1610324256776,0.13632608,37654.0,37648.0,0.00020387]
[1610324256973,0.13632608,37654.0,37653.0,0.00020387]
[1610324257274,0.13632608,37654.0,37647.0,0.08189]
[1610324257275,0.13632608,37654.0,37649.0,0.00020387]
[1610324257473,0.13632608,37654.0,37653.0,0.00020387]
[1610324257874,0.13632608,37654.0,37650.0,0.00020387]
[1610324258076,0.13632608,37654.0,37653.0,0.00020385]
[1610324258276,0.13632608,37654.0,37651.0,0.00020385]
[1610324258676,0.13632608,37654.0,37653.0,0.00020385]
[1610324258876,0.13632608,37654.0,37652.0,0.00020385]
[1610324259076,0.13632608,37654.0,37653.0,0.00020383]
[1610324259676,0.13632608,37654.0,37639.0,0.00020383]
[1610324259876,0.13632608,37654.0,37653.0,0.00020383]
[1610324260277,0.13632608,37654.0,37640.0,0.00020383]
[1610324260478,0.13632608,37654.0,37639.0,0.00020383]
[1610324260677,0.13632608,37654.0,37641.0,0.00020381]
[1610324261077,0.13632608,37642.0,37640.0,0.00020381]
[1610324261278,0.13632608,37642.0,37638.0,0.10193]
[1610324261279,0.13632608,37642.0,37639.0,0.00020381]
[1610324261478,0.13632608,37642.0,37641.0,0.00020383]
[1610324261780,0.13632608,37642.0,37640.0,0.00020383]
[1610324262178,0.13632608,37642.0,37639.0,0.00020383]
[1610324262380,0.13632608,37642.0,37641.0,0.00020383]
[1610324262578,0.13632608,37642.0,37640.0,0.00020383]
[1610324262979,0.13632608,37642.0,37639.0,0.00020383]
[1610324263179,0.13632608,37642.0,37641.0,0.00020385]
[1610324263379,0.13632608,37642.0,37640.0,0.00020385]
[1610324263782,0.13632608,37642.0,37639.0,0.00020385]
[1610324263982,0.13632608,37642.0,37641.0,0.00020385]
[1610324264184,0.13632608,37642.0,37640.0,0.00020385]
[1610324264583,0.13632608,37642.0,37639.0,0.00020385]
[1610324264784,0.13632608,37642.0,37641.0,0.00020385]
[1610324264984,0.13632608,37642.0,37639.0,0.00020385]
[1610324265185,4.0007,37640.0,37639.0,0.00020385]
[1610324265384,4.0007,37640.0,37638.0,0.10193]
[1610324265585,4.0007,37640.0,37631.0,0.005]
[1610324265784,4.0007,37640.0,37639.0,0.00020384]
[1610324265985,4.0007,37640.0,37639.0,0.07805]
[1610324266288,4.0007,37640.0,37639.0,0.07825384]
[1610324269690,4.0007,37640.0,37639.0,0.00020384]
[1610324270091,4.0007,37640.0,37632.0,0.00020384]
[1610324270290,4.0007,37640.0,37631.0,0.005]
[1610324270693,4.0007,37640.0,37632.0,0.00020325]
[1610324271092,0.13632608,37633.0,37632.0,0.00020325]
[1610324284001,0.5733,37658.0,37632.0,0.00020325]
[1610324284200,0.2978,37658.0,37632.0,0.00020325]
[1610324284601,0.2823,37665.0,37632.0,0.00020325]
[1610324284802,0.2913,37690.0,37632.0,0.00020325]
[1610324285002,0.5785,37690.0,37632.0,0.00020325]
[1610324285203,0.13632608,37672.0,37671.0,0.13632608]
[1610324285603,0.5785,37690.0,37671.0,0.13632608]
[1610324285803,0.5785,37690.0,37671.0,0.24590608]
[1610324286003,0.5785,37690.0,37672.0,0.0002]
[1610324287205,0.5785,37690.0,37689.0,0.13632608]
[1610324287407,0.2913,37690.0,37689.0,0.23318608]
[1610324287608,0.2913,37690.0,37689.0,0.23338608]
[1610324288005,0.13632608,37692.0,37689.0,0.23338608]
[1610324288405,0.2859,37727.0,37690.0,0.0002]
[1610324289205,0.2859,37727.0,37709.0,0.13632608]
[1610324289607,0.2859,37727.0,37709.0,0.21367608]
[1610324289806,0.2859,37727.0,37710.0,0.0002]
[1610324291009,0.2859,37727.0,37709.0,0.21367608]
[1610324291211,0.13632608,37710.0,37709.0,0.21367608]
[1610324292313,0.13632608,37710.0,37709.0,0.07735]
[1610324293315,0.13632608,37710.0,37709.0,0.21367608]
[1610324293916,0.13632608,37710.0,37709.0,0.07735]
[1610324294717,0.13632608,37710.0,37689.0,0.09686]
[1610324294917,0.13632608,37710.0,37671.0,0.10938]
[1610324295117,0.13632608,37710.0,37641.0,0.01624607]
[1610324295319,0.13632608,37698.0,37697.0,0.13632608]
[1610324296119,0.2859,37727.0,37697.0,0.13632608]
[1610324296319,0.2859,37727.0,37697.0,0.24249608]
[1610324297221,0.13632608,37700.0,37697.0,0.24249608]
[1610324299223,0.13632608,37704.0,37697.0,0.24249608]
[1610324301325,0.2859,37727.0,37703.0,0.13632608]
[1610324303229,0.13632608,37704.0,37703.0,0.13632608]
[1610324309642,0.13632608,37704.0,37703.0,0.13652608]
[1610324312043,0.13632608,37704.0,37703.0,0.0002]
[1610324312643,0.13632608,37704.0,37698.0,0.0002]
[1610324312845,0.13632608,37704.0,37703.0,0.0002]
[1610324313044,0.13632608,37704.0,37699.0,0.0002]
[1610324313446,0.13632608,37700.0,37698.0,0.0002]
[1610324313645,0.13632608,37700.0,37697.0,0.10617]
[1610324313845,0.13632608,37700.0,37673.0,0.13632608]
[1610324313846,0.13632608,37700.0,37699.0,0.0002]
[1610324314246,0.13632608,37700.0,37692.0,0.09978]
[1610324314446,0.13632608,37700.0,37699.0,0.0002]
[1610324314646,0.13632608,37700.0,37693.0,0.0002]
[1610324314848,0.13632608,37700.0,37692.0,0.09978]
[1610324315247,0.13632608,37700.0,37694.0,0.0002]
[1610324315447,0.13632608,37695.0,37693.0,0.0002]
[1610324317147,0.13632608,37695.0,37685.0,0.0002]
[1610324317348,1.5,37703.0,37694.0,0.0002]
[1610324317547,1.5,37703.0,37686.0,0.0002]
[1610324317948,1.5,37703.0,37685.0,0.0002]
[1610324318148,1.5,37703.0,37684.0,4e-05]
[1610324318349,1.5,37703.0,37686.0,0.0002]
[1610324318548,0.2828,37702.0,37676.0,0.11003]
[1610324318750,1.5,37701.0,37676.0,0.11003]
[1610324319149,1.5,37701.0,37677.0,0.0002]
[1610324319449,0.73102608,37678.0,37677.0,0.0002]
[1610324319649,2.23102608,37678.0,37677.0,0.0002]
[1610324320149,0.73102608,37678.0,37677.0,0.0002]
[1610324320348,0.73102608,37678.0,37676.0,0.11003]
[1610324320752,0.73102608,37678.0,37677.0,0.0002]
[1610324321553,0.13632608,37678.0,37677.0,0.0002]
[1610324322953,3.6369,37705.0,37677.0,0.0002]
[1610324323553,0.13632608,37697.0,37689.0,0.13632608]
[1610324323955,0.13632608,37697.0,37690.0,0.0002]
[1610324324155,0.13632608,37697.0,37690.0,0.07423]
[1610324324554,0.13632608,37697.0,37691.0,0.0002]
[1610324327560,0.13632608,37692.0,37691.0,0.0002]
[1610324330560,3.6369,37705.0,37691.0,0.0002]
[1610324330960,4.4523,37713.0,37691.0,0.0002]
[1610324331563,0.13632608,37697.0,37691.0,0.0002]
[1610324333360,4.4523,37713.0,37691.0,0.0002]
[1610324335560,0.13632608,37706.0,37697.0,0.13632608]
[1610324336160,4.4523,37713.0,37698.0,0.0002]
[1610324336560,4.4523,37713.0,37698.0,0.09173]
[1610324336960,4.4523,37713.0,37699.0,0.0002]
[1610324337561,4.4523,37713.0,37712.0,0.13632608]
[1610324337863,4.4523,37713.0,37712.0,0.21602608]
[1610324338063,4.4523,37713.0,37712.0,0.21622608]
[1610324338463,0.5767,37744.0,37712.0,4.37782608]
[1610324338662,0.2852,37744.0,37712.0,4.37782608]
[1610324338863,3.212,37750.0,37712.0,4.37782608]
[1610324339062,3.212,37750.0,37713.0,0.0002]
[1610324339462,0.13632608,37735.0,37730.0,0.13632608]
[1610324340064,3.212,37750.0,37730.0,0.13632608]
[1610324340065,3.212,37750.0,37731.0,0.0002]
[1610324340264,0.11052,37765.0,37731.0,0.1075]
[1610324340666,0.11052,37765.0,37732.0,0.0002]
[1610324341465,0.13632608,37742.0,37741.0,0.13632608]
[1610324342066,0.13632608,37742.0,37741.0,0.13652608]
[1610324342266,0.13632608,37742.0,37741.0,0.13632608]
[1610324342468,0.13632608,37742.0,37741.0,0.13652608]
[1610324342866,0.11052,37765.0,37741.0,0.13652608]
[1610324343067,0.11052,37765.0,37741.0,0.21804608]
[1610324343268,0.11052,37765.0,37742.0,0.0002]
[1610324343469,0.13632608,37746.0,37742.0,0.0002]
[1610324346372,3.6944,37773.0,37742.0,0.0002]
[1610324347573,0.13632608,37761.0,37750.0,0.13632608]
[1610324348173,0.13632608,37761.0,37751.0,0.0002]
[1610324348573,0.13632608,37761.0,37751.0,0.07149]
[1610324349575,0.13632608,37752.0,37751.0,0.07149]
[1610324350374,0.2746,37773.0,37751.0,0.07149]
[1610324351576,0.13632608,37764.0,37751.0,0.07149]
[1610324353880,0.13632608,37764.0,37748.0,0.13632608]
[1610324355585,0.13632608,37749.0,37748.0,0.13632608]
[1610324356284,0.2746,37773.0,37748.0,0.13632608]
[1610324357587,0.13632608,37757.0,37756.0,0.13632608]
[1610324359190,0.13632608,37757.0,37756.0,4.23992608]
[1610324359588,0.13632608,37764.0,37756.0,4.24012608]
[1610324359990,0.13632608,37764.0,37756.0,4.33706608]
[1610324360389,0.13632608,37764.0,37757.0,0.0002]
[1610324360894,0.13632608,37764.0,37756.0,4.33706608]
[1610324361694,0.13632608,37757.0,37756.0,4.33706608]
[1610324362094,0.13632608,37757.0,37756.0,4.33726608]
[1610324362494,0.13632608,37757.0,37756.0,4.20074]
[1610324363795,0.13632608,37757.0,37756.0,4.20094]
[1610324366196,0.13632608,37757.0,37756.0,4.20074]
[1610324366396,0.13632608,37757.0,37756.0,4.20094]
[1610324367499,0.2746,37773.0,37756.0,4.20094]
[1610324367699,0.2746,37773.0,37767.0,0.13632608]
[1610324367898,0.2746,37773.0,37768.0,0.0002]
[1610324368400,0.2774,37798.0,37768.0,0.0002]
[1610324370304,0.00032443,37783.0,37768.0,0.0002]
[1610324371705,0.00032443,37783.0,37768.0,0.13652608]
[1610324371906,0.00032443,37783.0,37768.0,0.0002]
[1610324372106,0.2774,37798.0,37768.0,0.0002]
[1610324372506,0.00032443,37782.0,37768.0,0.0002]
[1610324372707,0.00032443,37783.0,37768.0,0.0002]
[1610324372906,0.00032443,37781.0,37768.0,0.0002]
[1610324373306,0.00032443,37782.0,37768.0,0.0002]
[1610324373507,0.2774,37798.0,37768.0,0.0002]
[1610324373508,0.00032443,37780.0,37768.0,0.0002]
[1610324373707,0.2774,37798.0,37768.0,0.0002]
[1610324373708,0.13632608,37769.0,37768.0,0.0002]
[1610324377010,0.13632608,37769.0,37767.0,0.09597]
[1610324377011,0.13632608,37769.0,37756.0,0.07801]
[1610324377210,0.13665055,37769.0,37756.0,0.06251]
[1610324377411,0.00032447,37768.0,37757.0,0.0002]
[1610324377610,0.13632608,37758.0,37757.0,0.0002]
[1610324377810,4.00072608,37758.0,37757.0,0.0002]
[1610324378013,4.00072608,37758.0,37741.0,0.08152]
[1610324378014,4.00072608,37758.0,37742.0,0.0002]
[1610324378812,0.0003246,37757.0,37742.0,0.0002]
[1610324379011,0.0782646,37757.0,37742.0,0.0002]
[1610324379413,1.57794,37757.0,37742.0,0.0002]
[1610324379612,0.13632608,37743.0,37742.0,0.0002]
[1610324379812,0.13632608,37743.0,37727.0,3.5072]
[1610324379813,0.13632608,37743.0,37732.0,0.0002]
[1610324381115,0.13632608,37743.0,37728.0,0.0002]
[1610324381714,0.13632608,37729.0,37728.0,0.0002]
[1610324387722,0.13632608,37729.0,37709.0,0.0002]
[1610324388123,0.13632608,37729.0,37728.0,0.0002]
[1610324388325,0.13632608,37729.0,37720.0,0.10789]
[1610324388724,1.5,37728.0,37721.0,0.0002]
[1610324389625,1.5,37728.0,37709.0,0.0002]
[1610324389826,0.13632608,37722.0,37709.0,0.0002]
[1610324390027,0.13632608,37722.0,37708.0,3.8353]
[1610324390226,0.13632608,37722.0,37710.0,0.0002]
[1610324390426,1.63632608,37722.0,37709.0,0.0002]
[1610324390828,0.13632608,37722.0,37709.0,0.0002]
[1610324391728,0.13632608,37722.0,37711.0,0.13632608]
[1610324392329,0.13632608,37722.0,37712.0,0.0002]
[1610324392931,4.2722,37740.0,37712.0,0.0002]
[1610324393731,0.13632608,37736.0,37722.0,0.13632608]
[1610324393931,4.2722,37740.0,37722.0,0.13632608]
[1610324394131,4.2722,37740.0,37723.0,0.0002]
[1610324394935,4.2722,37740.0,37724.0,0.0002]
[1610324395433,4.2722,37740.0,37723.0,0.0002]
[1610324395835,4.2722,37740.0,37725.0,0.0002]
[1610324395836,0.13632608,37737.0,37725.0,0.0002]
[1610324396033,0.13632608,37737.0,37723.0,0.0002]
[1610324397735,0.13632608,37724.0,37723.0,0.0002]
[1610324398534,0.69662608,37724.0,37723.0,0.0002]
[1610324398934,2.19662608,37724.0,37706.0,0.0704]
[1610324399135,2.19662608,37724.0,37707.0,0.0002]
[1610324399334,2.19662608,37724.0,37707.0,0.09799]
[1610324399536,0.69662608,37724.0,37707.0,0.09779]
[1610324399735,0.5603,37724.0,37708.0,0.0002]
[1610324401736,0.13632608,37709.0,37708.0,0.0002]
[1610324409843,0.21502608,37709.0,37708.0,0.0002]
[1610324410043,0.13632608,37709.0,37708.0,0.0002]
[1610324412048,0.2913,37736.0,37708.0,0.0002]
[1610324412247,3.5769,37742.0,37708.0,0.0002]
[1610324412646,0.2816,37741.0,37708.0,0.0002]
[1610324413048,3.5769,37742.0,37708.0,0.0002]
[1610324413850,0.13632608,37741.0,37737.0,0.13632608]
[1610324414250,3.5769,37742.0,37738.0,0.0002]
[1610324414650,3.5769,37742.0,37738.0,0.09056]
[1610324415050,3.5769,37742.0,37739.0,0.0002]
[1610324415450,0.273,37785.0,37739.0,0.0002]
[1610324415650,0.2894,37784.0,37739.0,0.0002]
[1610324415850,0.13632608,37756.0,37747.0,0.13632608]
[1610324416452,0.13632608,37756.0,37748.0,0.0002]
[1610324416652,0.13632608,37756.0,37748.0,0.11573]
[1610324416853,0.2894,37784.0,37748.0,0.11573]
[1610324417156,0.2894,37784.0,37749.0,0.0002]
[1610324417754,0.0791,37783.0,37749.0,0.0002]
[1610324417953,0.0791,37783.0,37764.0,0.13632608]
[1610324417954,0.13632608,37769.0,37764.0,0.13632608]
[1610324418355,0.13632608,37769.0,37765.0,0.0002]
[1610324418554,0.13632608,37769.0,37765.0,0.07408]
[1610324419155,0.13632608,37769.0,37766.0,0.0002]
[1610324421357,0.08,37768.0,37766.0,0.0002]
[1610324421559,0.13632608,37769.0,37766.0,0.0002]
[1610324421757,2.23025886,37818.0,37766.0,0.0002]
[1610324421957,0.13632608,37775.0,37766.0,0.0002]
[1610324422662,0.0795,37774.0,37766.0,0.0002]
[1610324423266,0.13632608,37775.0,37766.0,0.0002]
[1610324423866,0.13632608,37767.0,37766.0,0.0002]
[1610324425767,0.21482608,37767.0,37766.0,0.0002]
[1610324426267,0.13632608,37767.0,37766.0,0.0002]
[1610324426467,0.13632608,37767.0,37765.0,0.07388]
[1610324426669,0.0799,37766.0,37763.0,0.13632608]
[1610324427468,0.13632608,37767.0,37763.0,0.13632608]
[1610324427867,0.0803,37766.0,37763.0,0.21662608]
[1610324428967,1.5,37809.0,37763.0,0.21662608]
[1610324429870,1.5,37809.0,37767.0,0.13632608]
[1610324430069,0.0799,37783.0,37767.0,0.13632608]
[1610324430471,0.1556,37810.0,37767.0,0.13632608]
[1610324430671,0.1556,37810.0,37763.0,0.0803]
[1610324431571,0.2358,37810.0,37763.0,0.0803]
[1610324431974,0.1556,37810.0,37764.0,0.0002]
[1610324432472,0.0787,37806.0,37764.0,0.0002]
[1610324432672,0.1556,37810.0,37764.0,0.0002]
[1610324433072,0.0798,37783.0,37764.0,0.0002]
[1610324433271,0.1556,37810.0,37764.0,0.0002]
[1610324433672,0.0782,37792.0,37764.0,0.0002]
[1610324433871,0.13632608,37783.0,37768.0,0.13632608]
[1610324434476,0.13632608,37783.0,37769.0,0.0002]
[1610324434973,0.10582,37813.0,37769.0,0.0002]
[1610324435373,0.2914,37826.0,37769.0,0.0002]
[1610324435574,0.0803,37825.0,37769.0,0.0002]
[1610324435774,0.10499,37825.0,37769.0,0.0002]
[1610324435973,0.13632608,37796.0,37791.0,0.13632608]
[1610324436773,0.0784,37795.0,37791.0,0.13632608]
[1610324438074,0.00828706,41414.0,37791.0,0.13632608]
[1610324438275,2.37867402,37858.0,37791.0,0.22595608]
[1610324438674,3.05993883,37852.0,37791.0,0.22595608]
[1610324439076,0.0782,37830.0,37791.0,0.22595608]
[1610324439875,0.13632608,37792.0,37791.0,0.22595608]
[1610324440074,0.0782,37830.0,37791.0,0.22595608]
[1610324441274,0.0794,37825.0,37791.0,0.22595608]
[1610324441474,0.37523,37829.0,37791.0,0.22595608]
[1610324441875,0.13632608,37805.0,37791.0,0.22595608]
[1610324442074,0.0793,37804.0,37791.0,0.22595608]
[1610324442474,0.13632608,37805.0,37791.0,0.22595608]
[1610324442674,0.13632608,37805.0,37792.0,0.0002]
[1610324443675,0.13632608,37805.0,37797.0,3.4669]
[1610324443874,0.13632608,37801.0,37800.0,0.13632608]
[1610324444274,0.13632608,37801.0,37797.0,3.4669]
[1610324445276,0.13632608,37801.0,37798.0,0.0002]
[1610324445477,4.3362,37840.0,37798.0,0.0002]
[1610324445879,0.13632608,37807.0,37798.0,0.13652608]
[1610324446278,0.13632608,37807.0,37799.0,0.0002]
[1610324446477,0.13632608,37807.0,37799.0,0.10006]
[1610324446877,0.13632608,37807.0,37800.0,0.0002]
[1610324447078,0.0785,37806.0,37800.0,0.0002]
[1610324447981,0.0785,37806.0,37805.0,0.13632608]
[1610324448180,0.0785,37806.0,37805.0,0.13652608]
[1610324449182,0.13632608,37807.0,37805.0,0.13652608]
[1610324449581,0.13632608,37807.0,37806.0,0.0002]
[1610324449781,0.13632608,37807.0,37799.0,0.09986]
[1610324449981,0.13632608,37807.0,37806.0,0.13652608]
[1610324450581,0.13632608,37807.0,37806.0,0.13632608]
[1610324451181,0.2718,37829.0,37806.0,0.13652608]
[1610324451582,0.2718,37829.0,37807.0,0.0002]
[1610324451782,0.2718,37829.0,37807.0,0.08173]
[1610324451983,0.13632608,37814.0,37810.0,0.13632608]
[1610324454886,0.2718,37829.0,37810.0,0.13632608]
[1610324455488,0.2971,37848.0,37810.0,0.13632608]
[1610324455687,0.2971,37848.0,37811.0,0.0002]
[1610324455887,0.13632608,37826.0,37823.0,0.13632608]
[1610324456088,0.2971,37848.0,37823.0,0.13632608]
[1610324456287,0.2971,37848.0,37823.0,0.23151608]
[1610324456487,0.2971,37848.0,37824.0,0.0002]
[1610324457988,0.13632608,37836.0,37834.0,0.13632608]
[1610324458589,0.2971,37848.0,37834.0,0.13632608]
[1610324458789,0.2971,37848.0,37834.0,0.24040608]
[1610324459991,0.13632608,37843.0,37834.0,0.24040608]
[1610324460591,4.2707,37867.0,37835.0,0.00020281]
[1610324461992,0.13632608,37853.0,37848.0,0.13632608]
[1610324462193,4.2707,37867.0,37849.0,0.00020272]
[1610324462393,0.2908,37878.0,37849.0,0.08421272]
[1610324462594,0.10699,37897.0,37849.0,0.08421272]
[1610324462793,0.2965,37896.0,37850.0,0.00020268]
[1610324462994,0.29682346,37896.0,37850.0,0.00020268]
[1610324463193,0.00032346,37895.0,37850.0,0.00020268]
[1610324463994,0.13632608,37868.0,37867.0,0.13632608]
[1610324464195,0.00032346,37895.0,37867.0,0.13632608]
[1610324464394,0.2965,37896.0,37867.0,0.22335608]
[1610324464595,0.0003234,37894.0,37868.0,0.00020268]
[1610324464797,0.2965,37896.0,37868.0,0.00020268]
[1610324465897,0.13632608,37873.0,37872.0,0.13632608]
[1610324466497,0.13632608,37873.0,37872.0,0.13652874]
[1610324467598,0.13632608,37873.0,37872.0,0.00020266]
[1610324467997,0.13632608,37873.0,37867.0,0.08703]
[1610324469598,0.13632608,37873.0,37849.0,0.08401]
[1610324469797,0.13632608,37873.0,37834.0,0.10408]
[1610324469998,0.13632608,37857.0,37847.0,0.13632608]
[1610324470999,0.2965,37896.0,37847.0,0.13632608]
[1610324471199,0.2965,37896.0,37847.0,0.23127608]
[1610324471799,4.1369,37886.0,37847.0,0.23127608]
[1610324472000,0.13632608,37872.0,37860.0,0.13632608]
[1610324474004,0.13632608,37861.0,37856.0,0.13632608]
[1610324476103,0.13632608,37861.0,37860.0,0.13632608]
[1610324476303,0.13632608,37861.0,37860.0,0.21978608]
[1610324477407,0.2965,37896.0,37860.0,0.21978608]
[1610324478007,0.13632608,37867.0,37865.0,0.13632608]
[1610324482616,0.2965,37896.0,37865.0,0.13632608]
[1610324484017,0.13632608,37884.0,37879.0,0.13632608]
[1610324484217,0.2965,37896.0,37879.0,0.13632608]
[1610324484417,0.2965,37896.0,37879.0,0.24203608]
[1610324485020,0.2813,37900.0,37879.0,0.24203608]
[1610324486122,0.13632608,37880.0,37879.0,0.24203608]
[1610324486321,0.2813,37900.0,37879.0,0.24203608]
[1610324488121,0.13632608,37885.0,37880.0,0.00020258]
[1610324488523,0.2775,37918.0,37880.0,0.00020258]
[1610324488722,0.00032318,37917.0,37880.0,0.00020258]
[1610324489523,0.00032308,37932.0,37880.0,0.00020258]
[1610324489723,0.10577,37941.0,37880.0,0.00020258]
[1610324490122,0.00032306,37931.0,37911.0,0.13632608]
[1610324490321,0.10577,37941.0,37911.0,0.13632608]
[1610324490322,0.00032306,37940.0,37911.0,0.13632608]
[1610324490522,0.10577,37941.0,37912.0,0.00020245]
[1610324490924,0.00032296,37939.0,37912.0,0.00020245]
[1610324491127,0.10577,37941.0,37915.0,0.0002024]
[1610324491324,0.10577,37941.0,37911.0,0.23716608]
[1610324491325,0.10577,37941.0,37912.0,0.0002024]
[1610324492126,0.13632608,37936.0,37929.0,0.13632608]
[1610324492526,0.13632608,37936.0,37930.0,0.00020238]
[1610324493328,0.13632608,37936.0,37929.0,0.13632608]
[1610324494028,0.10577,37941.0,37933.0,0.13632608]
[1610324494229,0.0788,38002.0,37933.0,0.13632608]
[1610324494429,0.5877,37991.0,37933.0,0.13632608]
[1610324494631,0.68101,37991.0,37933.0,0.13632608]
[1610324494829,0.0003228,37990.0,37933.0,0.13632608]
[1610324495834,0.0791,37989.0,37933.0,0.13632608]
[1610324496033,0.0003228,37990.0,37950.0,0.13632608]
[1610324496233,0.68101,37991.0,37950.0,0.13632608]
[1610324496435,0.0003227,37988.0,37950.0,0.13632608]
[1610324496633,1.0,37988.0,37950.0,0.13632608]
[1610324496834,1.0,37988.0,37924.0,0.07421]
[1610324497033,0.00032272,37987.0,37924.0,0.07421]
[1610324497835,0.00032272,37987.0,37911.0,0.10084]
[1610324498035,0.13632608,37922.0,37919.0,0.13632608]
[1610324498636,0.13632608,37922.0,37879.0,0.10571]
[1610324498836,0.13632608,37922.0,37860.0,0.08346]
[1610324499038,0.13632608,37922.0,37880.0,0.00020237]
[1610324499237,0.13632608,37922.0,37880.0,0.08791237]
[1610324499436,0.3001,37921.0,37880.0,0.08771]
[1610324499837,0.5934,37921.0,37881.0,0.00020239]
[1610324500040,0.13632608,37904.0,37901.0,0.13632608]
[1610324500238,0.13632608,37904.0,37881.0,0.00020239]
[1610324500638,0.13632608,37904.0,37880.0,0.08771]
[1610324502040,0.13632608,37904.0,37903.0,0.13632608]
[1610324502240,0.13632608,37904.0,37903.0,0.22645608]
[1610324503642,0.13632608,37904.0,37903.0,0.09013]
[1610324507245,0.13632608,37904.0,37884.0,0.13632608]
[1610324508047,0.13632608,37889.0,37888.0,0.13632608]
[1610324508446,0.5934,37921.0,37888.0,0.13632608]
[1610324508645,0.5934,37921.0,37888.0,0.23572608]
[1610324509848,0.5934,37921.0,37889.0,0.00020253]
[1610324510049,0.13632608,37898.0,37895.0,0.13632608]
[1610324510653,0.13632608,37898.0,37896.0,0.00020251]
[1610324510848,0.08393,37923.0,37896.0,0.08263251]
[1610324511048,0.07225,37931.0,37896.0,0.08263251]
[1610324511249,0.2716,37938.0,37897.0,0.00020248]
[1610324512051,0.13632608,37928.0,37915.0,0.13632608]
[1610324513051,0.13632608,37928.0,37916.0,0.00020242]
[1610324513451,0.08749,37939.0,37916.0,0.07108242]
[1610324513651,0.1556,37964.0,37916.0,0.07108242]
[1610324513852,0.2741,37963.0,37916.0,0.07108242]
[1610324514051,0.13632608,37933.0,37923.0,0.13632608]
[1610324514453,0.1028,37942.0,37923.0,0.13632608]
[1610324514853,0.1028,37942.0,37924.0,0.00020239]
[1610324516254,0.1028,37942.0,37928.0,0.13632608]
[1610324516856,0.1028,37942.0,37916.0,0.07088]
[1610324517261,0.1028,37942.0,37917.0,0.0002024]
[1610324518058,0.13632608,37918.0,37917.0,0.0002024]
[1610324518661,0.13632608,37918.0,37888.0,0.0994]
[1610324518861,0.13632608,37918.0,37844.0,0.0482521]
[1610324518862,4.30182608,37918.0,37876.0,3.5935]
[1610324519062,4.30182608,37918.0,37889.0,0.00021244]
[1610324519260,4.30182608,37918.0,37877.0,0.00021244]
[1610324519660,4.30182608,37918.0,37890.0,0.00021247]
[1610324519862,4.30182608,37918.0,37877.0,0.00021247]
[1610324520060,4.30182608,37918.0,37891.0,0.00021247]
[1610324520260,4.1655,37918.0,37891.0,0.00021247]
[1610324520462,4.1655,37918.0,37878.0,0.00021247]
[1610324520662,4.1655,37918.0,37877.0,0.00021249]
[1610324520861,4.1655,37918.0,37879.0,0.00021249]
[1610324521261,4.1655,37918.0,37878.0,0.00021249]
[1610324521463,4.1655,37918.0,37880.0,0.00021249]
[1610324521665,4.1655,37918.0,37879.0,0.00021249]
[1610324522065,4.1655,37918.0,37881.0,0.00021249]
[1610324522263,4.1655,37918.0,37881.0,0.13632608]
[1610324522467,4.1655,37918.0,37882.0,0.00021247]
[1610324524265,0.13632608,37895.0,37885.0,0.13632608]
[1610324524667,0.13632608,37895.0,37886.0,0.00021244]
[1610324525868,0.10696,37903.0,37886.0,0.00021244]
[1610324526068,4.1655,37918.0,37886.0,0.00021244]
[1610324526269,4.1655,37918.0,37896.0,0.13632608]
[1610324526468,4.1655,37918.0,37896.0,0.21022608]
[1610324526868,4.1655,37918.0,37897.0,0.0002124]
[1610324528270,0.13632608,37914.0,37904.0,0.13632608]
[1610324528672,0.13632608,37914.0,37905.0,0.00021234]
[1610324528871,0.13632608,37914.0,37905.0,0.11257234]
[1610324529270,0.13632608,37914.0,37906.0,0.00021234]
[1610324532274,0.13632608,37907.0,37906.0,0.00021234]
[1610324532877,0.13632608,37907.0,37905.0,0.00021237]
[1610324533075,0.13632608,37907.0,37906.0,0.00021237]
[1610324533676,0.13632608,37907.0,37897.0,0.00021239]
[1610324533877,0.13632608,37907.0,37906.0,0.00021242]
[1610324534280,0.13632608,37907.0,37898.0,0.00021242]
[1610324534478,0.13632608,37907.0,37906.0,0.00021246]
[1610324534676,0.13632608,37907.0,37899.0,0.00021246]
[1610324535078,0.13632608,37907.0,37897.0,0.00021246]
[1610324535278,0.13632608,37907.0,37900.0,0.00021246]
[1610324535479,0.13632608,37907.0,37898.0,0.00021246]
[1610324535879,0.13632608,37907.0,37901.0,0.00021246]
[1610324536079,0.13632608,37907.0,37899.0,0.00021246]
[1610324536279,0.13632608,37902.0,37896.0,0.6128]
[1610324536681,0.22282608,37902.0,37900.0,0.00021247]